fUSD/lending_fUSD_20240210
["ID","MTS","AMOUNT","RATE_DAILY","PERIOD"]
[313706636,1707600650701,-500.0,0.00038356,30]
[313706637,1707600650711,-597.61549857,0.00038356,30]
[313706638,1707600650720,-500.0,0.00038356,30]
[313706639,1707600650730,-500.0,0.00038356,30]
[313706640,1707600650739,-567.32,0.00038356,30]
[313706641,1707600650749,-500.0,0.00038356,30]
[313706642,1707600650759,-500.0,0.00038356,30]
[313706643,1707600650768,-500.0,0.00038356,30]
[313706644,1707600650778,-515.41486438,0.00038356,30]
[313706645,1707600650789,-280.47,0.00038356,30]
[313706646,1707600650800,-745.07,0.00038356,30]
[313706647,1707600650809,-500.0,0.00038356,30]
[313706648,1707600650819,-522.8,0.00038356,30]
[313706649,1707600650829,-500.0,0.00038356,30]
[313706650,1707600650838,-500.0,0.00038356,30]
[313706651,1707600650848,-500.0,0.00038356,30]
[313706652,1707600650858,-500.0,0.00038356,30]
[313706653,1707600650868,-500.0,0.00038356,30]
[313706654,1707600650878,-500.0,0.00038356,30]
[313706655,1707600650888,-868.65,0.00038356,30]
[313706656,1707600650897,-643.45,0.00038356,30]
[313706657,1707600650907,-500.0,0.00038356,30]
[313706658,1707600650916,-500.0,0.00038356,30]
[313706659,1707600650926,-612.95,0.00038356,30]
[313706660,1707600650935,-506.8,0.00038356,30]
[313706661,1707600650945,-500.0,0.00038356,30]
[313706662,1707600650954,-500.0,0.00038356,30]
[313706663,1707600650964,-500.0,0.00038356,30]
[313706664,1707600650973,-500.0,0.00038356,30]
[313706665,1707600650983,-500.0,0.00038356,30]
[313706666,1707600650992,-500.0,0.00038356,30]
[313706667,1707600651002,-500.0,0.00038356,7]
[313706668,1707600651011,-1056.57,0.00038356,30]
[313706669,1707600651021,-500.0,0.00038356,30]
[313706670,1707600651030,-500.0,0.00038356,30]
[313706671,1707600651040,-500.0,0.00038356,30]
[313706672,1707600651050,-500.0,0.00038356,30]
[313706673,1707600651059,-706.37,0.00038356,30]
[313706674,1707600651069,-500.0,0.00038356,30]
[313706675,1707600651078,-500.0,0.00038356,30]
[313706676,1707600651087,-529.24,0.00038356,30]
[313706677,1707600651096,-500.0,0.00038356,30]
[313706678,1707600651106,-500.0,0.00038356,30]
[313706679,1707600651115,-509.64174643,0.00038356,30]
[313706680,1707600651125,-500.0,0.00038356,30]
[313706681,1707600651134,-500.0,0.00038356,30]
[313706682,1707600651143,-500.0,0.00038356,30]
[313706683,1707600651153,-502.19,0.00038356,30]
[313706684,1707600651163,-500.0,0.00038356,30]
[313706685,1707600651173,-500.0,0.00038356,30]
[313706686,1707600651182,-500.0,0.00038356,30]
[313706687,1707600651192,-500.0,0.00038356,30]
[313706688,1707600651202,-500.0,0.00038356,30]
[313706689,1707600651211,-506.38756905,0.00038356,30]
[313706690,1707600651222,-500.0,0.00038356,30]
[313706691,1707600651232,-275.55997351,0.00038356,30]
[313706692,1707600651243,-500.0,0.00038356,30]
[313706693,1707600651253,-706.86,0.00038356,30]
[313706694,1707600651263,-500.0,0.00038356,30]
[313706695,1707600651274,-541.66,0.00038356,30]
[313706696,1707600651284,-500.0,0.00038356,30]
[313706697,1707600651295,-515.6,0.00038356,30]
[313706698,1707600651305,-500.0,0.00038356,30]
[313706699,1707600651314,-500.0,0.00038356,30]
[313706700,1707600651325,-500.0,0.00038356,30]
[313706701,1707600651334,-500.0,0.00038356,30]
[313706702,1707600651344,-500.0,0.00038356,30]
[313706703,1707600651355,-500.0,0.00038356,30]
[313706704,1707600651365,-506.18027926,0.00038356,30]
[313706705,1707600651375,-500.0,0.00038356,30]
[313706706,1707600651385,-1115.3,0.00038356,30]
[313706707,1707600651395,-500.0,0.00038356,30]
[313706708,1707600651405,-500.0,0.00038356,30]
[313706709,1707600651415,-503.68,0.00038356,30]
[313706710,1707600651425,-500.0,0.00038356,30]
[313706711,1707600651436,-500.0,0.00038356,30]
[313706712,1707600651446,-500.0,0.00038356,30]
[313706713,1707600651456,-500.0,0.00038356,30]
[313706714,1707600651465,-1282.41,0.00038356,30]
[313706715,1707600651475,-500.0,0.00038356,30]
[313706716,1707600651485,-500.0,0.00038356,30]
[313706717,1707600651494,-500.0,0.00038356,30]
[313706718,1707600651503,-591.92,0.00038356,30]
[313706719,1707600651513,-500.0,0.00038356,30]
[313706720,1707600651522,-500.0,0.00038356,30]
[313706721,1707600651531,-500.0,0.00038356,30]
[313706722,1707600651542,-500.0,0.00038356,30]
[313706723,1707600651552,-500.0,0.00038356,30]
[313706724,1707600651561,-500.0,0.00038356,30]
[313706725,1707600651571,-500.0,0.00038356,30]
[313706726,1707600651583,-500.0,0.00038356,30]
[313706727,1707600651592,-649.03883801,0.00038356,30]
[313706728,1707600651602,-500.0,0.00038356,30]
[313706729,1707600651611,-500.0,0.00038356,30]
[313706730,1707600651621,-500.0,0.00038356,30]
[313706731,1707600651630,-500.0,0.00038356,30]
[313706732,1707600651640,-500.0,0.00038356,30]
[313706733,1707600651649,-500.0,0.00038356,30]
[313706734,1707600651659,-500.0,0.00038356,30]
[313706735,1707600651668,-151.073889,0.00038356,7]
[313706736,1707600651678,-500.0,0.00038356,30]
[313706737,1707600651688,-500.0,0.00038356,30]
[313706738,1707600651698,-500.0,0.00038356,30]
[313706739,1707600651707,-500.0,0.00038356,30]
[313706740,1707600651717,-500.0,0.00038356,30]
[313706741,1707600651726,-510.39172011,0.00038356,30]
[313706742,1707600651735,-500.0,0.00038356,30]
[313706743,1707600651745,-500.0,0.00038356,30]
[313706744,1707600651755,-502.8559742,0.00038356,30]
[313706745,1707600651765,-500.0,0.00038356,30]
[313706746,1707600651774,-500.0,0.00038356,30]
[313706747,1707600651783,-500.0,0.00038356,30]
[313706748,1707600651795,-500.0,0.00038356,30]
[313706749,1707600651804,-500.0,0.00038356,30]
[313706750,1707600651814,-624.425735,0.00038356,30]
[313706751,1707600651824,-500.0,0.00038356,30]
[313706752,1707600651833,-500.0,0.00038356,30]
[313706753,1707600651843,-500.0,0.00038356,30]
[313706754,1707600651852,-500.0,0.00038356,30]
[313706755,1707600651862,-500.0,0.00038356,30]
[313706756,1707600651871,-754.78,0.00038356,30]
[313706757,1707600651881,-500.0,0.00038356,30]
[313706758,1707600651890,-500.0,0.00038356,30]
[313706759,1707600651899,-150.0,0.00038356,30]
[313706760,1707600651908,-500.0,0.00038356,30]
[313706761,1707600651918,-500.0,0.00038356,30]
[313706762,1707600651927,-527.18,0.00038356,30]
[313706763,1707600651936,-500.0,0.00038356,30]
[313706764,1707600651946,-250.0,0.00038356,30]
[313706765,1707600651955,-500.0,0.00038356,30]
[313706766,1707600651965,-500.0,0.00038356,30]
[313706767,1707600651974,-500.0,0.00038356,30]
[313706768,1707600651983,-500.0,0.00038356,30]
[313706769,1707600651993,-500.0,0.00038356,30]
[313706770,1707600652002,-500.0,0.00038356,30]
[313706771,1707600652011,-500.0,0.00038356,30]
[313706772,1707600652021,-500.0,0.00038356,30]
[313706773,1707600652030,-500.0,0.00038356,30]
[313706774,1707600652040,-500.0,0.00038356,30]
[313706775,1707600652049,-500.0,0.00038356,30]
[313706776,1707600652059,-500.0,0.00038356,30]
[313706777,1707600652068,-500.0,0.00038356,30]
[313706778,1707600652078,-500.0,0.00038356,30]
[313706779,1707600652087,-500.0,0.00038356,30]
[313706780,1707600652096,-510.48,0.00038356,30]
[313706781,1707600652105,-500.0,0.00038356,30]
[313706782,1707600652115,-500.0,0.00038356,30]
[313706783,1707600652124,-500.0,0.00038356,30]
[313706784,1707600652134,-500.0,0.00038356,30]
[313706785,1707600652143,-500.0,0.00038356,30]
[313706786,1707600652153,-4616.48056458,0.00038356,15]
[313706787,1707600652163,-500.0,0.00038356,30]
[313706788,1707600652172,-500.0,0.00038356,30]
[313706789,1707600652182,-500.0,0.00038356,30]
[313706790,1707600652191,-500.0,0.00038356,30]
[313706791,1707600652201,-500.0,0.00038356,30]
[313706792,1707600652210,-500.0,0.00038356,30]
[313706793,1707600652220,-1004.34,0.00038356,30]
[313706794,1707600652229,-500.0,0.00038356,30]
[313706795,1707600652240,-500.0,0.00038356,30]
[313706796,1707600652250,-500.0,0.00038356,30]
[313706797,1707600652259,-500.0,0.00038356,30]
[313706798,1707600652269,-500.0,0.00038356,30]
[313706799,1707600652279,-500.0,0.00038356,30]
[313706800,1707600652290,-500.0,0.00038356,30]
[313706801,1707600652299,-500.0,0.00038356,30]
[313706802,1707600652309,-502.52783856,0.00038356,30]
[313706803,1707600652322,-1028.04,0.00038356,30]
[313706804,1707600652331,-974.28,0.00038356,30]
[313706805,1707600652341,-500.0,0.00038356,30]
[313706806,1707600652351,-500.0,0.00038356,30]
[313706807,1707600652360,-500.0,0.00038356,30]
[313706808,1707600652369,-500.0,0.00038356,30]
[313706809,1707600652379,-500.0,0.00038356,30]
[313706810,1707600652388,-1248.46,0.00038356,30]
[313706811,1707600652398,-1354.3,0.00038356,30]
[313706812,1707600652407,-500.0,0.00038356,30]
[313706813,1707600652474,-500.0,0.00038356,30]
[313706814,1707600652483,-500.0,0.00038356,30]
[313706815,1707600652492,-500.0,0.00038356,30]
[313706816,1707600652501,-500.0,0.00038356,30]
[313706817,1707600652510,-500.0,0.00038356,30]
[313706818,1707600652519,-500.0,0.00038356,30]
[313706819,1707600652528,-2698.96,0.00038356,30]
[313706820,1707600652538,-500.0,0.00038356,30]
[313706821,1707600652547,-500.0,0.00038356,30]
[313706822,1707600652556,-500.0,0.00038356,30]
[313706823,1707600652565,-773.31,0.00038356,30]
[313706824,1707600652575,-500.0,0.00038356,30]
[313706825,1707600652584,-1020.08,0.00038356,30]
[313706826,1707600652593,-500.0,0.00038356,30]
[313706827,1707600652603,-1468.67,0.00038356,30]
[313706828,1707600652612,-500.0,0.00038356,30]
[313706829,1707600652622,-500.0,0.00038356,30]
[313706830,1707600652631,-500.0,0.00038356,30]
[313706831,1707600652642,-1648.08,0.00038356,30]
[313706832,1707600652652,-500.0,0.00038356,30]
[313706833,1707600652661,-500.0,0.00038356,30]
[313706834,1707600652670,-500.0,0.00038356,30]
[313706835,1707600652679,-500.0,0.00038356,30]
[313706836,1707600652689,-1006.27,0.00038356,30]
[313706837,1707600652699,-500.0,0.00038356,30]
[313706838,1707600652708,-500.0,0.00038356,30]
[313706839,1707600652718,-500.0,0.00038356,30]
[313706840,1707600652728,-500.0,0.00038356,30]
[313706841,1707600652737,-707.87,0.00038356,30]
[313706842,1707600652746,-500.0,0.00038356,30]
[313706843,1707600652755,-500.0,0.00038356,30]
[313706844,1707600652764,-835.37,0.00038356,30]
[313706845,1707600652773,-500.0,0.00038356,30]
[313706846,1707600652783,-500.0,0.00038356,30]
[313706847,1707600652793,-585.55,0.00038356,30]
[313706848,1707600652802,-500.0,0.00038356,30]
[313706849,1707600652811,-446.42528865,0.00038356,30]
[313706850,1707600652820,-531.80884594,0.00038356,30]
[313706851,1707600652830,-615.65,0.00038356,30]
[313706852,1707600652840,-500.0,0.00038356,30]
[313706853,1707600652849,-500.0,0.00038356,30]
[313706854,1707600652860,-500.0,0.00038356,30]
[313706855,1707600652869,-500.0,0.00038356,30]
[313706856,1707600652878,-710.1,0.00038356,30]
[313706857,1707600652888,-500.0,0.00038356,30]
[313706858,1707600652897,-500.0,0.00038356,30]
[313706859,1707600652906,-500.0,0.00038356,30]
[313706860,1707600652916,-637.4,0.00038356,30]
[313706861,1707600652925,-500.0,0.00038356,30]
[313706862,1707600652935,-500.0,0.00038356,30]
[313706863,1707600652944,-500.0,0.00038356,30]
[313706864,1707600652954,-500.0,0.00038356,30]
[313706865,1707600652963,-500.0,0.00038356,30]
[313706866,1707600652973,-632.23,0.00038356,30]
[313706867,1707600652984,-500.0,0.00038356,30]
[313706868,1707600652993,-1130.03,0.00038356,30]
[313706869,1707600653002,-2012.7,0.00038356,30]
[313706870,1707600653012,-500.0,0.00038356,10]
[313706871,1707600653021,-500.0,0.00038356,30]
[313706872,1707600653031,-676.8,0.00038356,30]
[313706873,1707600653041,-500.0,0.00038356,30]
[313706874,1707600653049,-500.0,0.00038356,30]
[313706875,1707600653059,-500.0,0.00038356,30]
[313706876,1707600653068,-1151.47,0.00038356,5]
[313706877,1707600653079,-500.0,0.00038356,30]
[313706878,1707600653088,-500.0,0.00038356,30]
[313706879,1707600653098,-500.0,0.00038356,30]
[313706880,1707600653107,-500.0,0.00038356,30]
[313706881,1707600653116,-1433.03,0.00038356,30]
[313706882,1707600653125,-500.0,0.00038356,30]
[313706883,1707600653134,-500.0,0.00038356,30]
[313706884,1707600653143,-500.0,0.00038356,30]
[313706885,1707600653152,-500.0,0.00038356,30]
[313706886,1707600653161,-500.0,0.00038356,30]
[313706887,1707600653170,-996.61,0.00038356,30]
[313706888,1707600653179,-500.0,0.00038356,30]
[313706889,1707600653188,-1000.0,0.00038356,2]
[313706890,1707600653197,-500.0,0.00038356,30]
[313706891,1707600653207,-500.0,0.00038356,30]
[313706892,1707600653217,-1675.21,0.00038356,30]
[313706893,1707600653233,-500.0,0.00038356,30]
[313706894,1707600653242,-500.0,0.00038356,30]
[313706895,1707600653251,-500.0,0.00038356,30]
[313706896,1707600653261,-500.0,0.00038356,30]
[313706897,1707600653270,-500.0,0.00038356,30]
[313706898,1707600653280,-500.0,0.00038356,30]
[313706899,1707600653289,-500.0,0.00038356,30]
[313706900,1707600653298,-607.37,0.00038356,2]
[313706901,1707600653308,-500.0,0.00038356,30]
[313706902,1707600653318,-891.28,0.00038356,30]
[313706903,1707600653328,-786.75,0.00038356,30]
[313706904,1707600653337,-511.04583735,0.00038356,30]
[313706905,1707600653346,-500.0,0.00038356,30]
[313706906,1707600653358,-500.0,0.00038356,30]
[313706907,1707600653368,-981.14,0.00038356,30]
[313706908,1707600653377,-1992.36,0.00038356,30]
[313706909,1707600653387,-1948.74,0.00038356,30]
[313706910,1707600653397,-1000.0,0.00038356,120]
[313706911,1707600653407,-352.50698573,0.00038356,30]
[313706912,1707600653417,-500.0,0.00038356,30]
[313706913,1707600653426,-500.0,0.00038356,30]
[313706914,1707600653436,-1915.67,0.00038356,30]
[313706915,1707600653445,-500.0,0.00038356,30]
[313706916,1707600653454,-500.0,0.00038356,30]
[313706917,1707600653464,-1571.66,0.00038356,30]
[313706918,1707600653474,-500.0,0.00038356,30]
[313706919,1707600653485,-508.73962755,0.00038356,30]
[313706920,1707600653494,-599.72343174,0.00038356,30]
[313706921,1707600653503,-500.0,0.00038356,30]
[313706922,1707600653513,-1093.86,0.00038356,30]
[313706923,1707600653522,-1107.45,0.00038356,30]
[313706924,1707600653531,-500.0,0.00038356,30]
[313706925,1707600653542,-500.0,0.00038356,30]
[313706926,1707600653551,-832.17,0.00038356,30]
[313706927,1707600653560,-500.0,0.00038356,30]
[313706928,1707600653570,-548.12,0.00038356,30]
[313706929,1707600653579,-670.83,0.00038356,30]
[313706930,1707600653588,-500.0,0.00038356,30]
[313706931,1707600653598,-154.35,0.00038356,30]
[313706932,1707600653607,-2135.62,0.00038356,30]
[313706933,1707600653616,-576.13,0.00038356,30]
[313706934,1707600653626,-500.0,0.00038356,30]
[313706935,1707600653635,-508.53,0.00038356,30]
[313706936,1707600653645,-2075.8,0.00038356,30]
[313706937,1707600653655,-637.94,0.00038356,30]
[313706938,1707600653664,-500.0,0.00038356,30]
[313706939,1707600653674,-190.53365405,0.00038356,30]
[313706940,1707600653683,-500.0,0.00038356,30]
[313706941,1707600653692,-500.0,0.00038356,30]
[313706942,1707600653702,-515.83721747,0.00038356,30]
[313706943,1707600653711,-501.8597257,0.00038356,30]
[313706944,1707600653721,-500.0,0.00038356,30]
[313706945,1707600653730,-500.0,0.00038356,30]
[313706946,1707600653739,-500.0,0.00038356,30]
[313706947,1707600653749,-500.0,0.00038356,30]
[313706948,1707600653758,-1098.0,0.00038356,30]
[313706949,1707600653767,-952.74,0.00038356,30]
[313706950,1707600653777,-1381.72,0.00038356,30]
[313706951,1707600653787,-500.0,0.00038356,30]
[313706952,1707600653798,-984.205735,0.00038356,7]
[313706953,1707600653808,-500.0,0.00038356,30]
[313706954,1707600653817,-2884.06,0.00038356,30]
[313706955,1707600653826,-500.0,0.00038356,30]
[313706956,1707600653835,-746.11,0.00038356,30]
[313706957,1707600653845,-695.59,0.00038356,30]
[313706958,1707600653855,-311.69003654,0.00038356,30]
[313706959,1707600653865,-984.205735,0.00038356,7]
[313706960,1707600653874,-857.11,0.00038356,30]
[313706961,1707600653883,-500.0,0.00038356,30]
[313706962,1707600653892,-500.0,0.00038356,30]
[313706963,1707600653902,-500.0,0.00038356,30]
[313706964,1707600653913,-500.0,0.00038356,30]
[313706965,1707600653922,-500.0,0.00038356,30]
[313706966,1707600653931,-257.70949532,0.00038356,30]
[313706967,1707600653940,-500.0,0.00038356,30]
[313706968,1707600653949,-2276.89,0.00038356,30]
[313706969,1707600653958,-500.0,0.00038356,30]
[313706970,1707600653967,-500.0,0.00038356,30]
[313706971,1707600653977,-775.52,0.00038356,30]
[313706972,1707600653986,-1726.49,0.00038356,30]
[313706973,1707600653995,-500.0,0.00038356,30]
[313706974,1707600654004,-500.0,0.00038356,30]
[313706975,1707600654013,-500.0,0.00038356,30]
[313706976,1707600654022,-2588.33,0.00038356,30]
[313706977,1707600654031,-500.0,0.00038356,30]
[313706978,1707600654041,-1000.0,0.00038356,7]
[313706979,1707600654049,-511.95895804,0.00038356,30]
[313706980,1707600654058,-500.0,0.00038356,30]
[313706981,1707600654067,-500.0,0.00038356,30]
[313706982,1707600654077,-992.81,0.00038356,30]
[313706983,1707600654086,-735.3,0.00038356,30]
[313706984,1707600654095,-1365.09,0.00038356,30]
[313706985,1707600654104,-722.45,0.00038356,30]
[313706986,1707600654113,-500.0,0.00038356,30]
[313706987,1707600654123,-558.14,0.00038356,30]
[313706988,1707600654132,-500.0,0.00038356,30]
[313706989,1707600654143,-500.0,0.00038356,30]
[313706990,1707600654153,-720.53,0.00038356,30]
[313706991,1707600654163,-754.42,0.00038356,30]
[313706992,1707600654172,-500.0,0.00038356,30]
[313706993,1707600654181,-500.0,0.00038356,30]
[313706994,1707600654190,-785.13,0.00038356,30]
[313706995,1707600654200,-500.0,0.00038356,30]
[313706996,1707600654209,-505.94658282,0.00038356,30]
[313706997,1707600654218,-500.0,0.00038356,30]
[313706998,1707600654228,-500.0,0.00038356,30]
[313706999,1707600654237,-563.06,0.00038356,30]
[313707000,1707600654250,-500.0,0.00038356,30]
[313707001,1707600654260,-500.0,0.00038356,30]
[313707002,1707600654269,-856.56,0.00038356,30]
[313707003,1707600654279,-1575.36,0.00038356,30]
[313707004,1707600654289,-879.65,0.00038356,30]
[313707005,1707600654299,-500.0,0.00038356,30]
[313707006,1707600654308,-1156.76,0.00038356,30]
[313707007,1707600654318,-1000.0,0.00038356,7]
[313707008,1707600654328,-1679.59,0.00038356,30]
[313707009,1707600654339,-657.74,0.00038356,30]
[313707010,1707600654350,-500.0,0.00038356,30]
[313707011,1707600654359,-3208.55,0.00038356,30]
[313707012,1707600654368,-504.29,0.00038356,30]
[313707013,1707600654378,-500.0,0.00038356,30]
[313707014,1707600654387,-679.77,0.00038356,30]
[313707015,1707600654397,-1168.11,0.00038356,30]
[313707016,1707600654406,-926.77,0.00038356,30]
[313707017,1707600654415,-2025.45,0.00038356,30]
[313707018,1707600654424,-500.0,0.00038356,30]
[313707019,1707600654434,-500.0,0.00038356,30]
[313707020,1707600654444,-1043.64,0.00038356,30]
[313707021,1707600654453,-500.0,0.00038356,30]
[313707022,1707600654462,-500.0,0.00038356,30]
[313707023,1707600654471,-552.04,0.00038356,30]
[313707024,1707600654480,-500.0,0.00038356,30]
[313707025,1707600654490,-500.0,0.00038356,30]
[313707026,1707600654499,-1154.1,0.00038356,30]
[313707027,1707600654508,-500.0,0.00038356,30]
[313707028,1707600654516,-500.0,0.00038356,30]
[313707029,1707600654526,-989.31,0.00038356,30]
[313707030,1707600654536,-505.23,0.00038356,30]
[313707031,1707600654546,-2027.94,0.00038356,30]
[313707032,1707600654555,-603.46,0.00038356,30]
[313707033,1707600654564,-500.0,0.00038356,30]
[313707034,1707600654574,-500.0,0.00038356,30]
[313707035,1707600654583,-761.12,0.00038356,30]
[313707036,1707600654593,-2891.76,0.00038356,30]
[313707037,1707600654603,-541.0,0.00038356,30]
[313707038,1707600654612,-500.0,0.00038356,30]
[313707039,1707600654621,-500.0,0.00038356,30]
[313707040,1707600654631,-500.0,0.00038356,30]
[313707041,1707600654641,-500.0,0.00038356,30]
[313707042,1707600654650,-500.0,0.00038356,30]
[313707043,1707600654660,-500.0,0.00038356,30]
[313707044,1707600654669,-500.0,0.00038356,30]
[313707045,1707600654679,-500.0,0.00038356,30]
[313707046,1707600654688,-2770.93,0.00038356,30]
[313707047,1707600654697,-500.0,0.00038356,30]
[313707048,1707600654706,-500.0,0.00038356,30]
[313707049,1707600654715,-500.0,0.00038356,30]
[313707050,1707600654724,-500.0,0.00038356,30]
[313707051,1707600654733,-500.0,0.00038356,30]
[313707052,1707600654741,-1243.29,0.00038356,30]
[313707053,1707600654751,-500.0,0.00038356,30]
[313707054,1707600654760,-579.05,0.00038356,30]
[313707055,1707600654770,-500.0,0.00038356,30]
[313707056,1707600654780,-1118.7,0.00038356,30]
[313707057,1707600654790,-500.0,0.00038356,30]
[313707058,1707600654799,-500.0,0.00038356,30]
[313707059,1707600654808,-614.47,0.00038356,30]
[313707060,1707600654818,-500.0,0.00038356,30]
[313707061,1707600654826,-527.5507515,0.00038356,30]
[313707062,1707600654835,-500.0,0.00038356,30]
[313707063,1707600654844,-500.0,0.00038356,30]
[313707064,1707600654853,-500.0,0.00038356,30]
[313707065,1707600654863,-774.48,0.00038356,30]
[313707066,1707600654872,-833.42,0.00038356,30]
[313707067,1707600654881,-500.0,0.00038356,30]
[313707068,1707600654890,-500.0,0.00038356,30]
[313707069,1707600654899,-1903.16,0.00038356,30]
[313707070,1707600654908,-507.24174519,0.00038356,30]
[313707071,1707600654918,-712.27,0.00038356,30]
[313707072,1707600654926,-500.0,0.00038356,30]
[313707073,1707600654935,-500.0,0.00038356,30]
[313707074,1707600654944,-776.19,0.00038356,30]
[313707075,1707600654953,-500.0,0.00038356,30]
[313707076,1707600654963,-500.0,0.00038356,30]
[313707077,1707600654972,-500.0,0.00038356,30]
[313707078,1707600654981,-500.0,0.00038356,30]
[313707079,1707600654990,-500.0,0.00038356,30]
[313707080,1707600654999,-500.0,0.00038356,30]
[313707081,1707600655008,-500.0,0.00038356,30]
[313707082,1707600655018,-793.0,0.00038356,30]
[313707083,1707600655027,-819.96,0.00038356,30]
[313707084,1707600655036,-500.0,0.00038356,30]
[313707085,1707600655046,-500.0,0.00038356,30]
[313707086,1707600655055,-835.83,0.00038356,30]
[313707087,1707600655064,-500.0,0.00038356,30]
[313707088,1707600655073,-500.0,0.00038356,30]
[313707089,1707600655082,-500.0,0.00038356,30]
[313707090,1707600655091,-500.0,0.00038356,30]
[313707091,1707600655102,-521.81,0.00038356,30]
[313707092,1707600655112,-500.0,0.00038356,30]
[313707093,1707600655122,-1439.11,0.00038356,30]
[313707094,1707600655132,-666.09,0.00038356,30]
[313707095,1707600655142,-500.0,0.00038356,30]
[313707096,1707600655153,-1762.95,0.00038356,30]
[313707097,1707600655162,-500.0,0.00038356,30]
[313707098,1707600655174,-1507.87,0.00038356,30]
[313707099,1707600655183,-500.0,0.00038356,30]
[313707100,1707600655193,-1220.74,0.00038356,30]
[313707101,1707600655203,-500.0,0.00038356,30]
[313707102,1707600655212,-500.0,0.00038356,30]
[313707103,1707600655222,-500.0,0.00038356,30]
[313707104,1707600655232,-1071.55,0.00038356,30]
[313707105,1707600655243,-500.0,0.00038356,30]
[313707106,1707600655254,-1158.55,0.00038356,30]
[313707107,1707600655264,-500.0,0.00038356,30]
[313707108,1707600655273,-576.97,0.00038356,30]
[313707109,1707600655283,-2544.48,0.00038356,30]
[313707110,1707600655293,-500.0,0.00038356,5]
[313707111,1707600655303,-500.0,0.00038356,30]
[313707112,1707600655314,-891.22,0.00038356,30]
[313707113,1707600655323,-585.68785682,0.00038356,30]
[313707114,1707600655333,-580.24474848,0.00038356,30]
[313707115,1707600655343,-526.32,0.00038356,30]
[313707116,1707600655352,-500.0,0.00038356,30]
[313707117,1707600655362,-1206.55,0.00038356,30]
[313707118,1707600655371,-777.02,0.00038356,30]
[313707119,1707600655381,-816.89,0.00038356,30]
[313707120,1707600655390,-500.0,0.00038356,30]
[313707121,1707600655400,-1195.77,0.00038356,30]
[313707122,1707600655411,-500.0,0.00038356,30]
[313707123,1707600655421,-500.0,0.00038356,30]
[313707124,1707600655431,-500.0,0.00038356,30]
[313707125,1707600655441,-714.43,0.00038356,30]
[313707126,1707600655451,-500.0,0.00038356,30]
[313707127,1707600655461,-500.0,0.00038356,30]
[313707128,1707600655470,-518.1,0.00038356,30]
[313707129,1707600655480,-2109.4,0.00038356,30]
[313707130,1707600655490,-500.0,0.00038356,30]
[313707131,1707600655499,-174.44588538,0.00038356,30]
[313707132,1707600655508,-500.0,0.00038356,30]
[313707133,1707600655518,-500.0,0.00038356,30]
[313707134,1707600655527,-150.0,0.00038356,2]
[313707135,1707600655537,-155.0,0.00038357,2]